[Event "*** Titled Tuesday Blitz"]
[Site "Chess.com"]
[Date "2020.03.03"]
[Round "3"]
[White "Keithonsky"]
[Black "Abund"]
[Result "0-1"]
[WhiteElo "2435"]
[BlackElo "2686"]
[TimeControl "180+1"]
[EndTime "13:27:47 PST"]
[Termination "Abund won by resignation"]

1. d4 {[%clk 0:02:59.9]} 1... Nf6 {[%clk 0:02:59.8]} 2. c4 {[%clk 0:03:00.2]}
2... g6 {[%clk 0:03:00.2]} 3. Nc3 {[%clk 0:03:00.2]} 3... d5 {[%clk 0:03:00.5]}
4. Bg5 {[%clk 0:03:00.5]} 4... Ne4 {[%clk 0:02:51.4]} 5. Bf4 {[%clk 0:02:59.9]}
5... Nxc3 {[%clk 0:02:47]} 6. bxc3 {[%clk 0:03:00.8]} 6... Bg7 {[%clk
0:02:46.7]} 7. e3 {[%clk 0:03:01.1]} 7... O-O {[%clk 0:02:43]} 8. Nf3 {[%clk
0:03:01.4]} 8... c5 {[%clk 0:02:39.8]} 9. cxd5 {[%clk 0:03:01.3]} 9... cxd4
{[%clk 0:02:35.5]} 10. cxd4 {[%clk 0:03:02.1]} 10... Qxd5 {[%clk 0:02:32]} 11.
Be2 {[%clk 0:03:01.9]} 11... Qa5+ {[%clk 0:02:28.5]} 12. Qd2 {[%clk 0:03:01.8]}
12... Qxd2+ {[%clk 0:02:28.5]} 13. Nxd2 {[%clk 0:03:02.7]} 13... Nc6 {[%clk
0:02:27.6]} 14. O-O {[%clk 0:03:02.6]} 14... e5 {[%clk 0:02:26.2]} 15. dxe5
{[%clk 0:03:02.1]} 15... Nxe5 {[%clk 0:02:26.5]} 16. Rac1 {[%clk 0:03:01.6]}
16... Be6 {[%clk 0:02:23.1]} 17. Nb3 {[%clk 0:03:01.4]} 17... Rac8 {[%clk
0:02:19.1]} 18. h3 {[%clk 0:03:00.7]} 18... Rfd8 {[%clk 0:01:58.1]} 19. Rfd1
{[%clk 0:03:00.3]} 19... Rxd1+ {[%clk 0:01:53.9]} 20. Rxd1 {[%clk 0:02:56.5]}
20... h6 {[%clk 0:01:44.7]} 21. Rc1 {[%clk 0:02:51.3]} 21... Rxc1+ {[%clk
0:01:40.5]} 22. Nxc1 {[%clk 0:02:52]} 22... Nc6 {[%clk 0:01:38]} 23. a3 {[%clk
0:02:47.9]} 23... g5 {[%clk 0:01:36.8]} 24. Bd6 {[%clk 0:02:45.4]} 24... Na5
{[%clk 0:01:29.8]} 25. Nd3 {[%clk 0:02:44.5]} 25... Nc4 {[%clk 0:01:29.9]} 26.
Be7 {[%clk 0:02:41.6]} 26... b6 {[%clk 0:01:27.6]} 27. Nb4 {[%clk 0:02:38.5]}
27... a5 {[%clk 0:01:17.3]} 28. Nc6 {[%clk 0:02:37.2]} 28... Bd5 {[%clk
0:01:15.9]} 29. Nd4 {[%clk 0:02:34.2]} 29... Bf8 {[%clk 0:00:52.2]} 30. Nf5
{[%clk 0:02:30.6]} 30... Nxa3 {[%clk 0:00:46.1]} 31. Bxf8 {[%clk 0:02:29]} 31...
Kxf8 {[%clk 0:00:46.1]} 32. Nxh6 {[%clk 0:02:29.9]} 32... b5 {[%clk 0:00:44.2]}
33. Nf5 {[%clk 0:02:26.8]} 33... b4 {[%clk 0:00:44.4]} 34. Nd4 {[%clk
0:02:26.9]} 34... b3 {[%clk 0:00:44.6]} 35. Bd3 {[%clk 0:02:27.4]} 35... b2
{[%clk 0:00:44.7]} 36. Kf1 {[%clk 0:02:26.2]} 36... Bc4 {[%clk 0:00:43.9]} 0-1

[Event "*** Titled Tuesday Blitz"]
[Site "Chess.com"]
[Date "2020.03.03"]
[Round "3"]
[White "chegueps"]
[Black "DACF2905"]
[Result "0-1"]
[WhiteElo "2446"]
[BlackElo "2216"]
[TimeControl "180+1"]
[EndTime "13:27:52 PST"]
[Termination "DACF2905 won by resignation"]

1. b3 {[%clk 0:03:00.9]} 1... c5 {[%clk 0:02:57.2]} 2. Bb2 {[%clk 0:03:01.8]}
2... b6 {[%clk 0:02:57.6]} 3. Nf3 {[%clk 0:03:00.5]} 3... Bb7 {[%clk 0:02:58]}
4. e3 {[%clk 0:03:00.5]} 4... Nf6 {[%clk 0:02:58.4]} 5. Be2 {[%clk 0:02:58.4]}
5... e6 {[%clk 0:02:58.4]} 6. O-O {[%clk 0:02:57.2]} 6... Be7 {[%clk 0:02:58.3]}
7. d3 {[%clk 0:02:55.8]} 7... O-O {[%clk 0:02:58.7]} 8. Nbd2 {[%clk 0:02:53.6]}
8... d5 {[%clk 0:02:58.6]} 9. e4 {[%clk 0:02:54]} 9... d4 {[%clk 0:02:56.8]} 10.
Ne5 {[%clk 0:02:49.9]} 10... Nbd7 {[%clk 0:02:55.5]} 11. Nxd7 {[%clk 0:02:35.1]}
11... Nxd7 {[%clk 0:02:54.3]} 12. f4 {[%clk 0:02:36]} 12... e5 {[%clk
0:02:51.9]} 13. g3 {[%clk 0:02:31.1]} 13... Bd6 {[%clk 0:02:47.2]} 14. Nc4
{[%clk 0:02:22.6]} 14... Qc7 {[%clk 0:02:46]} 15. Nxd6 {[%clk 0:02:20.5]} 15...
Qxd6 {[%clk 0:02:44.7]} 16. f5 {[%clk 0:02:21.4]} 16... f6 {[%clk 0:02:43.6]}
17. g4 {[%clk 0:02:17.1]} 17... b5 {[%clk 0:02:39.5]} 18. h4 {[%clk 0:02:15.1]}
18... a5 {[%clk 0:02:38.7]} 19. a4 {[%clk 0:02:13.9]} 19... b4 {[%clk
0:02:34.9]} 20. Kh2 {[%clk 0:01:55]} 20... Kh8 {[%clk 0:02:33.8]} 21. Rg1 {[%clk
0:01:54]} 21... c4 {[%clk 0:02:24.6]} 22. bxc4 {[%clk 0:01:48.9]} 22... Nc5
{[%clk 0:02:24.3]} 23. Bf3 {[%clk 0:01:45.9]} 23... Bc6 {[%clk 0:02:22.8]} 24.
Rg3 {[%clk 0:01:41.7]} 24... Nxa4 {[%clk 0:02:20.6]} 25. Bc1 {[%clk 0:01:40.4]}
25... Nc3 {[%clk 0:02:20.2]} 26. Qg1 {[%clk 0:01:39.8]} 26... a4 {[%clk
0:02:13.2]} 27. g5 {[%clk 0:01:38.8]} 27... b3 {[%clk 0:02:12]} 28. Ba3 {[%clk
0:01:31.9]} 28... Qxa3 {[%clk 0:01:55.5]} 29. Rxa3 {[%clk 0:01:30.7]} 29... b2
{[%clk 0:01:56.4]} 30. Rxc3 {[%clk 0:00:47.6]} 30... dxc3 {[%clk 0:01:54.8]} 31.
Qb1 {[%clk 0:00:46.2]} 31... a3 {[%clk 0:01:53.7]} 32. Rg1 {[%clk 0:00:45.6]}
32... a2 {[%clk 0:01:52.8]} 0-1

[Event "*** Titled Tuesday Blitz"]
[Site "Chess.com"]
[Date "2020.03.03"]
[Round "3"]
[White "elisak43"]
[Black "2165149677570"]
[Result "1-0"]
[WhiteElo "2516"]
[BlackElo "2233"]
[TimeControl "180+1"]
[EndTime "13:27:55 PST"]
[Termination "elisak43 won by resignation"]

1. Nf3 {[%clk 0:02:51.8]} 1... c5 {[%clk 0:02:58.4]} 2. g3 {[%clk 0:02:52.2]}
2... Nc6 {[%clk 0:02:58.7]} 3. Bg2 {[%clk 0:02:52.8]} 3... g6 {[%clk 0:02:58.8]}
4. O-O {[%clk 0:02:53.6]} 4... Bg7 {[%clk 0:02:59]} 5. c4 {[%clk 0:02:54]} 5...
e5 {[%clk 0:02:59]} 6. Nc3 {[%clk 0:02:54]} 6... Nge7 {[%clk 0:02:59.1]} 7. d3
{[%clk 0:02:54.4]} 7... O-O {[%clk 0:02:58.3]} 8. Bd2 {[%clk 0:02:47.2]} 8... d6
{[%clk 0:02:51]} 9. Nd5 {[%clk 0:02:43.8]} 9... Nxd5 {[%clk 0:02:50.2]} 10. cxd5
{[%clk 0:02:44]} 10... Ne7 {[%clk 0:02:51.1]} 11. Qb3 {[%clk 0:02:39.6]} 11...
h6 {[%clk 0:02:47.2]} 12. Rfc1 {[%clk 0:02:36.3]} 12... b6 {[%clk 0:02:38]} 13.
Bc3 {[%clk 0:02:30.7]} 13... f5 {[%clk 0:02:29]} 14. Nxe5 {[%clk 0:02:27.7]}
14... Kh7 {[%clk 0:02:00.4]} 15. Nc6 {[%clk 0:02:23.4]} 15... Qe8 {[%clk
0:01:38.1]} 16. Bxg7 {[%clk 0:02:21.7]} 16... Kxg7 {[%clk 0:01:35.3]} 17. Qc3+
{[%clk 0:02:17.9]} 17... Kh7 {[%clk 0:01:30.3]} 18. b4 {[%clk 0:02:18.8]} 18...
Nxc6 {[%clk 0:01:26.5]} 19. dxc6 {[%clk 0:02:19.6]} 19... Be6 {[%clk 0:01:27.4]}
20. b5 {[%clk 0:02:13]} 20... d5 {[%clk 0:01:25.2]} 21. Qe5 {[%clk 0:02:05.1]}
21... Bf7 {[%clk 0:01:22]} 22. Qd6 {[%clk 0:01:54.6]} 22... Rd8 {[%clk 0:01:10]}
23. Qc7 {[%clk 0:01:51.7]} 23... Qxe2 {[%clk 0:00:57.5]} 24. Qxa7 {[%clk
0:01:49.4]} 24... Qxd3 {[%clk 0:00:45.7]} 25. c7 {[%clk 0:01:43.7]} 25... Rd6
{[%clk 0:00:42.2]} 26. c8=Q {[%clk 0:01:41]} 26... Rxc8 {[%clk 0:00:39.9]} 27.
Qxf7+ {[%clk 0:01:41.1]} 27... Kh8 {[%clk 0:00:40.4]} 28. Re1 {[%clk 0:01:38.8]}
1-0

[Event "*** Titled Tuesday Blitz"]
[Site "Chess.com"]
[Date "2020.03.03"]
[Round "3"]
[White "ZEN-22"]
[Black "SHIVACalypso"]
[Result "1-0"]
[WhiteElo "2381"]
[BlackElo "2178"]
[TimeControl "180+1"]
[EndTime "13:28:15 PST"]
[Termination "ZEN-22 won by checkmate"]

1. e3 {[%clk 0:03:00.9]} 1... e6 {[%clk 0:02:59]} 2. Ne2 {[%clk 0:03:01.8]} 2...
Nf6 {[%clk 0:02:58.9]} 3. d4 {[%clk 0:03:02.7]} 3... d5 {[%clk 0:02:58.9]} 4. c4
{[%clk 0:03:03.6]} 4... dxc4 {[%clk 0:02:54.6]} 5. Nf4 {[%clk 0:03:01.1]} 5...
c5 {[%clk 0:02:54.4]} 6. Bxc4 {[%clk 0:03:00.5]} 6... cxd4 {[%clk 0:02:53.9]} 7.
O-O {[%clk 0:02:59.8]} 7... Nc6 {[%clk 0:02:48.7]} 8. exd4 {[%clk 0:02:58.6]}
8... Qxd4 {[%clk 0:02:45.3]} 9. Qe2 {[%clk 0:02:56.9]} 9... Be7 {[%clk
0:02:23.6]} 10. Rd1 {[%clk 0:02:55.3]} 10... Qe5 {[%clk 0:02:21.7]} 11. Be3
{[%clk 0:02:54.3]} 11... O-O {[%clk 0:02:15.8]} 12. Nc3 {[%clk 0:02:54.1]} 12...
a6 {[%clk 0:01:42.5]} 13. a3 {[%clk 0:02:49.1]} 13... b5 {[%clk 0:01:41.8]} 14.
Nd3 {[%clk 0:02:45.2]} 14... Qc7 {[%clk 0:01:37.4]} 15. Ba2 {[%clk 0:02:43.5]}
15... Bb7 {[%clk 0:01:37]} 16. Nc5 {[%clk 0:02:43.2]} 16... Rfd8 {[%clk
0:01:29.8]} 17. Nxb7 {[%clk 0:02:41.5]} 17... Qxb7 {[%clk 0:01:30.7]} 18. Qf3
{[%clk 0:02:37.4]} 18... Na5 {[%clk 0:01:26.5]} 19. Qh3 {[%clk 0:02:34.8]} 19...
Nc4 {[%clk 0:01:22.5]} 20. Bg5 {[%clk 0:02:33.3]} 20... Nxb2 {[%clk 0:01:15.8]}
21. Re1 {[%clk 0:02:32.1]} 21... Nd3 {[%clk 0:01:11.6]} 22. Re3 {[%clk
0:02:31.3]} 22... Rac8 {[%clk 0:01:02.1]} 23. Rxd3 {[%clk 0:02:27.3]} 23... Rxd3
{[%clk 0:00:59.1]} 24. Qxd3 {[%clk 0:02:26]} 24... Rxc3 {[%clk 0:00:50.6]} 25.
Qxc3 {[%clk 0:02:25]} 25... Ne4 {[%clk 0:00:50.7]} 26. Qe5 {[%clk 0:02:08]}
26... Nxg5 {[%clk 0:00:36.8]} 27. Rc1 {[%clk 0:01:56.7]} 27... Bf6 {[%clk
0:00:25.2]} 28. Qc7 {[%clk 0:01:50]} 28... Qxc7 {[%clk 0:00:24.5]} 29. Rxc7
{[%clk 0:01:50]} 29... h6 {[%clk 0:00:25.4]} 30. Ra7 {[%clk 0:01:48.8]} 30...
Bb2 {[%clk 0:00:22.9]} 31. Rxa6 {[%clk 0:01:48.5]} 31... Ne4 {[%clk 0:00:23.1]}
32. Bb1 {[%clk 0:01:47.7]} 32... Nc3 {[%clk 0:00:22]} 33. Ra8# {[%clk
0:01:47.1]} 1-0

[Event "*** Titled Tuesday Blitz"]
[Site "Chess.com"]
[Date "2020.03.03"]
[Round "3"]
[White "Tjktiger"]
[Black "vpantev"]
[Result "1-0"]
[WhiteElo "2817"]
[BlackElo "2632"]
[TimeControl "180+1"]
[EndTime "13:28:39 PST"]
[Termination "Tjktiger won by resignation"]

1. c4 {[%clk 0:03:00.5]} 1... Nf6 {[%clk 0:02:58.2]} 2. Nc3 {[%clk 0:03:00.7]}
2... c5 {[%clk 0:02:56.9]} 3. g3 {[%clk 0:03:00.5]} 3... Nc6 {[%clk 0:02:54.8]}
4. Bg2 {[%clk 0:02:59.1]} 4... e6 {[%clk 0:02:54.4]} 5. Nf3 {[%clk 0:02:58.7]}
5... Be7 {[%clk 0:02:54]} 6. O-O {[%clk 0:02:58.2]} 6... d6 {[%clk 0:02:52.6]}
7. d4 {[%clk 0:02:58.4]} 7... cxd4 {[%clk 0:02:52.4]} 8. Nxd4 {[%clk 0:02:59.3]}
8... Bd7 {[%clk 0:02:51.7]} 9. b3 {[%clk 0:02:58.7]} 9... a6 {[%clk 0:02:51.4]}
10. Bb2 {[%clk 0:02:58.7]} 10... O-O {[%clk 0:02:51.1]} 11. e3 {[%clk
0:02:58.4]} 11... Rc8 {[%clk 0:02:49.1]} 12. Rc1 {[%clk 0:02:57.3]} 12... Qb6
{[%clk 0:02:48.9]} 13. Nde2 {[%clk 0:02:46.3]} 13... Rfd8 {[%clk 0:02:47.6]} 14.
Qd2 {[%clk 0:02:46]} 14... h6 {[%clk 0:02:46.5]} 15. Rfd1 {[%clk 0:02:45.8]}
15... Qa7 {[%clk 0:02:46.6]} 16. h3 {[%clk 0:02:43.3]} 16... Qb8 {[%clk
0:02:44.6]} 17. Nf4 {[%clk 0:02:39.5]} 17... b5 {[%clk 0:02:41.3]} 18. cxb5
{[%clk 0:02:37.2]} 18... axb5 {[%clk 0:02:41]} 19. Kh2 {[%clk 0:02:28.4]} 19...
Ne5 {[%clk 0:02:38.1]} 20. Nd3 {[%clk 0:02:02.2]} 20... Nxd3 {[%clk 0:02:32.6]}
21. Qxd3 {[%clk 0:02:02.2]} 21... Bc6 {[%clk 0:02:30.3]} 22. Bxc6 {[%clk
0:01:53.8]} 22... Rxc6 {[%clk 0:02:30.1]} 23. Qxb5 {[%clk 0:01:54.1]} 23... Rb6
{[%clk 0:02:29.6]} 24. Qa5 {[%clk 0:01:28.5]} 24... d5 {[%clk 0:02:22.5]} 25.
Na4 {[%clk 0:01:27.4]} 25... Rb7 {[%clk 0:02:12.5]} 26. Qa6 {[%clk 0:01:09.3]}
26... Ne4 {[%clk 0:02:02.3]} 27. Kg2 {[%clk 0:01:06.4]} 27... Bd6 {[%clk
0:01:52.8]} 28. Qe2 {[%clk 0:00:43.5]} 28... Ra7 {[%clk 0:01:32.4]} 29. Bd4
{[%clk 0:00:34.8]} 29... Ra6 {[%clk 0:01:26.1]} 30. Qxa6 {[%clk 0:00:29.1]}
30... Bxg3 {[%clk 0:01:23.2]} 31. Qb6 {[%clk 0:00:28.5]} 1-0

[Event "*** Titled Tuesday Blitz"]
[Site "Chess.com"]
[Date "2020.03.03"]
[Round "3"]
[White "JonahWillow"]
[Black "PowerThinking2650"]
[Result "1-0"]
[WhiteElo "2631"]
[BlackElo "2396"]
[TimeControl "180+1"]
[EndTime "13:28:39 PST"]
[Termination "JonahWillow won by resignation"]

1. e4 {[%clk 0:03:00.9]} 1... e5 {[%clk 0:02:59.5]} 2. Nf3 {[%clk 0:02:59.6]}
2... Nc6 {[%clk 0:02:59.2]} 3. Nc3 {[%clk 0:03:00.5]} 3... Nf6 {[%clk
0:02:58.8]} 4. Bb5 {[%clk 0:03:00.8]} 4... Bb4 {[%clk 0:02:57.7]} 5. O-O {[%clk
0:03:00.6]} 5... O-O {[%clk 0:02:55.3]} 6. d3 {[%clk 0:03:00.9]} 6... d6 {[%clk
0:02:52.3]} 7. Bg5 {[%clk 0:03:00.3]} 7... Bxc3 {[%clk 0:02:39.8]} 8. bxc3
{[%clk 0:03:01.2]} 8... Qe7 {[%clk 0:02:38.9]} 9. Re1 {[%clk 0:02:59.8]} 9...
Nd8 {[%clk 0:02:38.8]} 10. d4 {[%clk 0:02:58.9]} 10... Ne6 {[%clk 0:02:36.3]}
11. Bc1 {[%clk 0:02:58.2]} 11... c5 {[%clk 0:02:36]} 12. Bd3 {[%clk 0:02:53.9]}
12... Qc7 {[%clk 0:01:53.7]} 13. d5 {[%clk 0:02:42.6]} 13... Nd8 {[%clk
0:01:50.1]} 14. Nd2 {[%clk 0:02:42]} 14... Bd7 {[%clk 0:01:37.2]} 15. a4 {[%clk
0:02:39.1]} 15... h6 {[%clk 0:01:33]} 16. Nc4 {[%clk 0:02:38.8]} 16... b6 {[%clk
0:01:26.9]} 17. g3 {[%clk 0:02:37.5]} 17... Bg4 {[%clk 0:01:22.5]} 18. f3 {[%clk
0:02:35.8]} 18... Bd7 {[%clk 0:01:10.6]} 19. f4 {[%clk 0:02:35.4]} 19... Bg4
{[%clk 0:00:59.5]} 20. Be2 {[%clk 0:02:35.2]} 20... Bxe2 {[%clk 0:00:58.4]} 21.
Qxe2 {[%clk 0:02:36.1]} 21... Nd7 {[%clk 0:00:56.6]} 22. Qf3 {[%clk 0:02:31.7]}
22... f6 {[%clk 0:00:54.9]} 23. Bd2 {[%clk 0:02:29.9]} 23... Nf7 {[%clk
0:00:54.4]} 24. Kg2 {[%clk 0:02:29.3]} 24... a6 {[%clk 0:00:52.1]} 25. Rab1
{[%clk 0:02:28.4]} 25... Rfb8 {[%clk 0:00:48.1]} 26. Na3 {[%clk 0:02:27.7]}
26... c4 {[%clk 0:00:38.4]} 27. Qe2 {[%clk 0:02:23.4]} 27... b5 {[%clk
0:00:20.4]} 28. Rb4 {[%clk 0:02:19.4]} 28... Qc5 {[%clk 0:00:15.7]} 29. Reb1
{[%clk 0:02:17.1]} 29... exf4 {[%clk 0:00:13.9]} 30. gxf4 {[%clk 0:02:17.2]}
30... f5 {[%clk 0:00:14]} 31. axb5 {[%clk 0:02:13.5]} 31... axb5 {[%clk
0:00:13.4]} 32. Nxb5 {[%clk 0:02:10.4]} 32... fxe4 {[%clk 0:00:13.1]} 33. Qxc4
{[%clk 0:02:00.3]} 33... Qxc4 {[%clk 0:00:12.8]} 34. Rxc4 {[%clk 0:02:01.2]}
34... Nb6 {[%clk 0:00:12.9]} 35. Rd4 {[%clk 0:01:56.2]} 35... Nd7 {[%clk
0:00:10.5]} 36. Rxe4 {[%clk 0:01:51.4]} 36... Nf6 {[%clk 0:00:10.1]} 37. Rd4
{[%clk 0:01:50.6]} 37... Ra5 {[%clk 0:00:09.2]} 38. c4 {[%clk 0:01:51]} 38...
Rc8 {[%clk 0:00:07.9]} 39. Bxa5 {[%clk 0:01:51.1]} 1-0

[Event "*** Titled Tuesday Blitz"]
[Site "Chess.com"]
[Date "2020.03.03"]
[Round "3"]
[White "czasnaszachy"]
[Black "kleopl"]
[Result "1-0"]
[WhiteElo "2265"]
[BlackElo "2468"]
[TimeControl "180+1"]
[EndTime "13:28:40 PST"]
[Termination "czasnaszachy won by resignation"]

1. e4 {[%clk 0:03:00.9]} 1... c6 {[%clk 0:02:58.5]} 2. d4 {[%clk 0:02:56.3]}
2... d5 {[%clk 0:02:59.4]} 3. Nd2 {[%clk 0:02:55.6]} 3... h6 {[%clk 0:02:58.7]}
4. c3 {[%clk 0:02:53.6]} 4... dxe4 {[%clk 0:02:57]} 5. Nxe4 {[%clk 0:02:53.6]}
5... Bf5 {[%clk 0:02:57.6]} 6. Bd3 {[%clk 0:02:50.5]} 6... e6 {[%clk 0:02:55]}
7. Ne2 {[%clk 0:02:49.1]} 7... Nd7 {[%clk 0:02:53.1]} 8. N2g3 {[%clk 0:02:49]}
8... Bh7 {[%clk 0:02:53.1]} 9. Bf4 {[%clk 0:02:44.3]} 9... Nb6 {[%clk
0:02:48.6]} 10. O-O {[%clk 0:02:40.3]} 10... Nd5 {[%clk 0:02:48.4]} 11. Nh5
{[%clk 0:02:36.4]} 11... g6 {[%clk 0:02:36.8]} 12. Be5 {[%clk 0:02:34.9]} 12...
f6 {[%clk 0:02:30.4]} 13. Bg3 {[%clk 0:02:00.8]} 13... gxh5 {[%clk 0:02:21.4]}
14. Qxh5+ {[%clk 0:02:00.5]} 14... Kd7 {[%clk 0:02:20.7]} 15. Rfe1 {[%clk
0:01:49.6]} 15... Qe8 {[%clk 0:02:16]} 16. Qh3 {[%clk 0:01:49.3]} 16... Bf5
{[%clk 0:02:12.4]} 17. Nc5+ {[%clk 0:01:48.6]} 17... Bxc5 {[%clk 0:02:11.1]} 18.
Bxf5 {[%clk 0:01:48.6]} 18... exf5 {[%clk 0:01:22.9]} 19. Rxe8 {[%clk 0:01:47]}
19... Rxe8 {[%clk 0:01:23.8]} 20. Qxf5+ {[%clk 0:01:42.8]} 20... Kd8 {[%clk
0:01:23.5]} 21. dxc5 {[%clk 0:01:40.6]} 21... Nge7 {[%clk 0:01:23.6]} 22. Qd3
{[%clk 0:01:35.9]} 22... Kc8 {[%clk 0:01:21]} 23. c4 {[%clk 0:01:33.6]} 23...
Nb4 {[%clk 0:01:17.3]} 24. Qd6 {[%clk 0:01:30.4]} 24... Na6 {[%clk 0:01:17.2]}
25. Qe6+ {[%clk 0:01:26.9]} 25... Kd8 {[%clk 0:01:17.2]} 26. Rd1+ {[%clk
0:01:25.8]} 26... Nd5 {[%clk 0:01:17.3]} 27. Qxf6+ {[%clk 0:01:14.2]} 27... Kc8
{[%clk 0:01:16.5]} 28. cxd5 {[%clk 0:01:14.2]} 28... Rhf8 {[%clk 0:01:14.2]} 29.
Qxh6 {[%clk 0:01:09.9]} 29... cxd5 {[%clk 0:01:10.4]} 30. c6 {[%clk 0:01:06.5]}
30... Rf7 {[%clk 0:01:03.7]} 31. Qh3+ {[%clk 0:01:03.7]} 31... Kd8 {[%clk
0:01:00]} 32. Rxd5+ {[%clk 0:01:02.6]} 32... Ke7 {[%clk 0:00:58.3]} 33. Rd7+
{[%clk 0:00:53.5]} 33... Kf6 {[%clk 0:00:56.7]} 34. Qh6+ {[%clk 0:00:50.9]} 1-0

[Event "*** Titled Tuesday Blitz"]
[Site "Chess.com"]
[Date "2020.03.03"]
[Round "3"]
[White "ehrenfeld"]
[Black "saraswathii"]
[Result "1-0"]
[WhiteElo "2491"]
[BlackElo "2217"]
[TimeControl "180+1"]
[EndTime "13:28:44 PST"]
[Termination "ehrenfeld won by resignation"]

1. e4 {[%clk 0:01:15.1]} 1... c5 {[%clk 0:02:53.8]} 2. d3 {[%clk 0:01:15]} 2...
e6 {[%clk 0:02:52.9]} 3. f4 {[%clk 0:01:15.1]} 3... d5 {[%clk 0:02:51.6]} 4. Be2
{[%clk 0:01:15.2]} 4... Nf6 {[%clk 0:02:49.3]} 5. e5 {[%clk 0:01:14.6]} 5...
Nfd7 {[%clk 0:02:48.9]} 6. Nf3 {[%clk 0:01:14.7]} 6... g6 {[%clk 0:02:48.5]} 7.
c3 {[%clk 0:01:14.8]} 7... Bg7 {[%clk 0:02:46.9]} 8. d4 {[%clk 0:01:14.9]} 8...
Nc6 {[%clk 0:02:45.7]} 9. Be3 {[%clk 0:01:14.9]} 9... Qb6 {[%clk 0:02:41.7]} 10.
Qd2 {[%clk 0:01:14.8]} 10... c4 {[%clk 0:02:40.8]} 11. O-O {[%clk 0:01:11.3]}
11... O-O {[%clk 0:02:38.2]} 12. Na3 {[%clk 0:01:10.9]} 12... a6 {[%clk
0:02:32.6]} 13. Nc2 {[%clk 0:01:10.7]} 13... Qc7 {[%clk 0:02:30.4]} 14. b3
{[%clk 0:01:06.1]} 14... b5 {[%clk 0:02:29.6]} 15. g4 {[%clk 0:01:05.4]} 15...
f6 {[%clk 0:02:26.4]} 16. Qe1 {[%clk 0:00:56.5]} 16... cxb3 {[%clk 0:02:15.4]}
17. axb3 {[%clk 0:00:55.8]} 17... Na5 {[%clk 0:02:13.8]} 18. Rb1 {[%clk
0:00:48.9]} 18... Bb7 {[%clk 0:02:10]} 19. Nb4 {[%clk 0:00:45.9]} 19... Rac8
{[%clk 0:02:04.5]} 20. Bd2 {[%clk 0:00:45.8]} 20... Nc6 {[%clk 0:01:57.9]} 21.
Nd3 {[%clk 0:00:45.3]} 21... a5 {[%clk 0:01:52.3]} 22. Qh4 {[%clk 0:00:43.2]}
22... Rf7 {[%clk 0:01:38.6]} 23. Rbc1 {[%clk 0:00:38]} 23... Rcf8 {[%clk
0:01:32]} 24. Be3 {[%clk 0:00:37.3]} 24... a4 {[%clk 0:01:21.7]} 25. b4 {[%clk
0:00:36.6]} 25... Qd8 {[%clk 0:01:18]} 26. Qg3 {[%clk 0:00:35.6]} 26... Re8
{[%clk 0:01:04.3]} 27. Kh1 {[%clk 0:00:35.3]} 27... Na5 {[%clk 0:00:58.5]} 28.
bxa5 {[%clk 0:00:32.9]} 1-0

[Event "*** Titled Tuesday Blitz"]
[Site "Chess.com"]
[Date "2020.03.03"]
[Round "3"]
[White "ajian"]
[Black "Barcelona_Guy"]
[Result "0-1"]
[WhiteElo "2308"]
[BlackElo "2585"]
[TimeControl "180+1"]
[EndTime "13:28:53 PST"]
[Termination "Barcelona_Guy won by checkmate"]

1. d4 {[%clk 0:03:00.9]} 1... Nf6 {[%clk 0:03:00]} 2. c4 {[%clk 0:03:00.5]} 2...
g6 {[%clk 0:03:00.1]} 3. Nc3 {[%clk 0:03:00.7]} 3... d5 {[%clk 0:03:00.6]} 4.
cxd5 {[%clk 0:03:00.2]} 4... Nxd5 {[%clk 0:03:01.5]} 5. e4 {[%clk 0:03:00.5]}
5... Nxc3 {[%clk 0:03:02]} 6. bxc3 {[%clk 0:03:01.3]} 6... Bg7 {[%clk
0:03:02.7]} 7. Bc4 {[%clk 0:03:01.7]} 7... c5 {[%clk 0:03:02.9]} 8. Ne2 {[%clk
0:03:02.2]} 8... O-O {[%clk 0:03:03.4]} 9. Be3 {[%clk 0:03:02.5]} 9... Nc6
{[%clk 0:03:03.7]} 10. O-O {[%clk 0:03:03]} 10... b6 {[%clk 0:03:03.1]} 11. Rc1
{[%clk 0:02:59.5]} 11... Bb7 {[%clk 0:03:02]} 12. f4 {[%clk 0:02:34.4]} 12...
Rc8 {[%clk 0:02:51]} 13. Bd3 {[%clk 0:02:12.6]} 13... cxd4 {[%clk 0:02:49.4]}
14. cxd4 {[%clk 0:02:05.7]} 14... Nxd4 {[%clk 0:02:48.3]} 15. Rxc8 {[%clk
0:02:04.3]} 15... Nxe2+ {[%clk 0:02:47.6]} 16. Qxe2 {[%clk 0:02:04]} 16... Qxc8
{[%clk 0:02:44.6]} 17. Rc1 {[%clk 0:02:03.4]} 17... Qe6 {[%clk 0:02:43.4]} 18.
e5 {[%clk 0:01:54.8]} 18... Rc8 {[%clk 0:02:37.5]} 19. Rxc8+ {[%clk 0:01:49.8]}
19... Qxc8 {[%clk 0:02:37.2]} 20. Bc4 {[%clk 0:01:41.3]} 20... e6 {[%clk
0:02:34.6]} 21. Qd3 {[%clk 0:01:38.1]} 21... Bf8 {[%clk 0:02:33.4]} 22. Bb3
{[%clk 0:01:32.8]} 22... Qc6 {[%clk 0:02:32.8]} 23. Qd2 {[%clk 0:01:29.3]} 23...
a5 {[%clk 0:02:32]} 24. a4 {[%clk 0:01:24.6]} 24... Bb4 {[%clk 0:02:26.7]} 25.
Qc2 {[%clk 0:01:18]} 25... Bc3 {[%clk 0:01:59.5]} 26. Kh1 {[%clk 0:00:58.7]}
26... h5 {[%clk 0:01:54.2]} 27. Bxb6 {[%clk 0:00:52.2]} 27... h4 {[%clk
0:01:53.8]} 28. h3 {[%clk 0:00:41.3]} 28... Qxb6 {[%clk 0:01:49.2]} 29. Qxc3
{[%clk 0:00:40.9]} 29... Qf2 {[%clk 0:01:47.9]} 30. Qc2 {[%clk 0:00:09.5]} 30...
Qf1+ {[%clk 0:01:46.1]} 31. Kh2 {[%clk 0:00:09.5]} 31... Qxf4+ {[%clk 0:01:47]}
32. Kg1 {[%clk 0:00:09.4]} 32... Qxe5 {[%clk 0:01:43.8]} 33. Qf2 {[%clk
0:00:07.2]} 33... Qg3 {[%clk 0:01:29]} 34. Qb6 {[%clk 0:00:05.7]} 34... Qxg2#
{[%clk 0:01:28.4]} 0-1